[Event "Titled Tuesday Blitz May 9 Late 2023"]
[White "lluiss"]
[Black "Plotnikov, Pavel"]
[BlackFideId "4170342"]
[WhiteElo "2283"]
[BlackElo "2298"]
[Result "1/2-1/2"]
[Round "01"]
[TimeControl "180+2"]
[Date "2023.05.09"]
[WhiteClock "0:00:12"]
[BlackClock "0:00:20"]

1. Nf3 {[%clk 0:02:58]}  e6 {[%clk 0:02:59]} 2. c4 {[%clk 0:02:55]}  d5 {[%clk 0:02:57]} 3. cxd5 {[%clk 0:02:55]}  exd5 {[%clk 0:02:57]} 4. d4 {[%clk 0:02:56]}  Nf6 {[%clk 0:02:57]} 5. Nc3 {[%clk 0:02:55]}  Bd6 {[%clk 0:02:56]} 6. Qc2 {[%clk 0:02:51]}  c6 {[%clk 0:02:56]} 7. Bg5 {[%clk 0:02:50]}  O-O {[%clk 0:02:55]} 8. e3 {[%clk 0:02:50]}  Bg4 {[%clk 0:02:51]} 9. Ne5 {[%clk 0:02:47]}  Bh5 {[%clk 0:02:49]} 10. Bd3 {[%clk 0:02:46]}  Bg6 {[%clk 0:02:44]} 11. Nxg6 {[%clk 0:02:39]}  hxg6 {[%clk 0:02:44]} 12. Bh4 {[%clk 0:02:15]}  Nbd7 {[%clk 0:02:37]} 13. Bg3 {[%clk 0:02:15]}  Qe7 {[%clk 0:02:34]} 14. Bxd6 {[%clk 0:02:06]}  Qxd6 {[%clk 0:02:32]} 15. O-O {[%clk 0:02:06]}  Ng4 {[%clk 0:02:24]} 16. g3 {[%clk 0:02:06]}  f5 {[%clk 0:02:24]} 17. Ne2 {[%clk 0:01:57]}  Ndf6 {[%clk 0:02:19]} 18. Nf4 {[%clk 0:01:56]}  g5 {[%clk 0:02:03]} 19. Ng6 {[%clk 0:01:45]}  Nxh2 {[%clk 0:01:51]} 20. Nxf8 {[%clk 0:01:36]}  Nxf1 {[%clk 0:01:50]} 21. Rxf1 {[%clk 0:01:32]}  Rxf8 {[%clk 0:01:48]} 22. Bxf5 {[%clk 0:01:32]}  Qe7 {[%clk 0:01:30]} 23. Qe2 {[%clk 0:01:03]}  Ne4 {[%clk 0:01:17]} 24. Bxe4 {[%clk 0:01:03]}  Qxe4 {[%clk 0:01:14]} 25. f3 {[%clk 0:00:54]}  Qe6 {[%clk 0:01:12]} 26. g4 {[%clk 0:00:52]}  Re8 {[%clk 0:01:04]} 27. Re1 {[%clk 0:00:52]}  Qd6 {[%clk 0:01:04]} 28. Kg2 {[%clk 0:00:52]}  Re6 {[%clk 0:01:01]} 29. Rh1 {[%clk 0:00:46]}  Qe7 {[%clk 0:00:59]} 30. Kf2 {[%clk 0:00:45]}  Qb4 {[%clk 0:00:52]} 31. Rh5 {[%clk 0:00:39]}  Rh6 {[%clk 0:00:51]} 32. Rxh6 {[%clk 0:00:38]}  gxh6 {[%clk 0:00:52]} 33. Kg3 {[%clk 0:00:36]}  Kg7 {[%clk 0:00:50]} 34. f4 {[%clk 0:00:36]}  gxf4+ {[%clk 0:00:49]} 35. Kxf4 {[%clk 0:00:35]}  Qe7 {[%clk 0:00:44]} 36. Kg3 {[%clk 0:00:33]}  Qe4 {[%clk 0:00:43]} 37. Qf3 {[%clk 0:00:29]}  Qxf3+ {[%clk 0:00:35]} 38. Kxf3 {[%clk 0:00:29]}  Kf6 {[%clk 0:00:35]} 39. Kf4 {[%clk 0:00:29]}  b6 {[%clk 0:00:34]} 40. b4 {[%clk 0:00:29]}  Kg6 {[%clk 0:00:31]} 41. e4 {[%clk 0:00:21]}  dxe4 {[%clk 0:00:30]} 42. Kxe4 {[%clk 0:00:21]}  Kg5 {[%clk 0:00:31]} 43. Kf3 {[%clk 0:00:21]}  Kf6 {[%clk 0:00:29]} 44. Kf4 {[%clk 0:00:20]}  Ke6 {[%clk 0:00:30]} 45. Ke4 {[%clk 0:00:20]}  b5 {[%clk 0:00:27]} 46. a3 {[%clk 0:00:14]}  a6 {[%clk 0:00:26]} 47. Ke3 {[%clk 0:00:14]}  Kd6 {[%clk 0:00:25]} 48. Ke2 {[%clk 0:00:12]}  Kd5 {[%clk 0:00:23]} 49. Kd3 {[%clk 0:00:12]}  Ke6 {[%clk 0:00:22]} 50. Ke4 {[%clk 0:00:12]}  Kf6 {[%clk 0:00:22]} 51. Kf4 {[%clk 0:00:12]}  Kg6 {[%clk 0:00:23]} 52. Kf3 {[%clk 0:00:12]}  Kg5 {[%clk 0:00:23]} 53. Kg3 {[%clk 0:00:12]}  Kf6 {[%clk 0:00:23]} 54. Kf4 {[%clk 0:00:12]}  Ke6 {[%clk 0:00:23]} 55. Ke4 {[%clk 0:00:13]}  Kd6 {[%clk 0:00:23]} 56. Ke3 {[%clk 0:00:13]}  Ke7 {[%clk 0:00:21]} 57. Ke4 {[%clk 0:00:12]}  Kf6 {[%clk 0:00:20]} 58. Kf4 {[%clk 0:00:12]} 1/2-1/2


[Site "https://www.chess.com"]

[Event "Titled Tuesday Blitz May 9 Late 2023"]
[White "Hjartarson, Johann"]
[Black "Cooklev, Steven"]
[WhiteFideId "2300044"]
[BlackFideId "2050552"]
[WhiteElo "2407"]
[BlackElo "2280"]
[Result "1-0"]
[Round "01"]
[TimeControl "180+2"]
[Date "2023.05.09"]
[WhiteClock "0:00:10"]
[BlackClock "0:00:08"]

1. e4 {[%clk 0:03:00]}  c5 {[%clk 0:02:59]} 2. Nf3 {[%clk 0:03:00]}  Nc6 {[%clk 0:02:59]} 3. d4 {[%clk 0:02:58]}  cxd4 {[%clk 0:02:59]} 4. Nxd4 {[%clk 0:02:58]}  e5 {[%clk 0:03:00]} 5. Nb5 {[%clk 0:02:57]}  d6 {[%clk 0:02:59]} 6. c4 {[%clk 0:02:57]}  Be6 {[%clk 0:02:57]} 7. N1c3 {[%clk 0:02:56]}  a6 {[%clk 0:02:57]} 8. Na3 {[%clk 0:02:55]}  g6 {[%clk 0:02:56]} 9. Be2 {[%clk 0:02:51]}  Bg7 {[%clk 0:02:56]} 10. O-O {[%clk 0:02:51]}  Nf6 {[%clk 0:02:55]} 11. Nc2 {[%clk 0:02:49]}  O-O {[%clk 0:02:52]} 12. Bg5 {[%clk 0:02:48]}  h6 {[%clk 0:02:52]} 13. Bxf6 {[%clk 0:02:47]}  Qxf6 {[%clk 0:02:53]} 14. Qd3 {[%clk 0:02:42]}  Rac8 {[%clk 0:02:33]} 15. b3 {[%clk 0:02:40]}  Qh4 {[%clk 0:01:54]} 16. Rad1 {[%clk 0:02:36]}  Nd4 {[%clk 0:01:48]} 17. Nxd4 {[%clk 0:02:32]}  exd4 {[%clk 0:01:49]} 18. Nd5 {[%clk 0:02:25]}  f5 {[%clk 0:01:40]} 19. exf5 {[%clk 0:02:13]}  Bxf5 {[%clk 0:01:40]} 20. Qg3 {[%clk 0:02:12]}  Qxg3 {[%clk 0:01:31]} 21. hxg3 {[%clk 0:02:12]}  Rfe8 {[%clk 0:01:25]} 22. Bf3 {[%clk 0:02:11]}  b5 {[%clk 0:01:07]} 23. g4 {[%clk 0:01:54]}  Bc2 {[%clk 0:01:07]} 24. Rd2 {[%clk 0:01:46]}  d3 {[%clk 0:01:06]} 25. cxb5 {[%clk 0:01:39]}  axb5 {[%clk 0:01:05]} 26. Nb4 {[%clk 0:01:17]}  Bc3 {[%clk 0:01:03]} 27. Rxc2 {[%clk 0:01:16]}  dxc2 {[%clk 0:00:56]} 28. Nxc2 {[%clk 0:01:16]}  Be5 {[%clk 0:00:38]} 29. Nb4 {[%clk 0:01:11]}  Kg7 {[%clk 0:00:32]} 30. Rd1 {[%clk 0:01:04]}  Rf8 {[%clk 0:00:26]} 31. Be4 {[%clk 0:00:58]}  Rf4 {[%clk 0:00:20]} 32. f3 {[%clk 0:00:57]}  h5 {[%clk 0:00:20]} 33. gxh5 {[%clk 0:00:42]}  gxh5 {[%clk 0:00:21]} 34. g3 {[%clk 0:00:34]}  Rff8 {[%clk 0:00:21]} 35. f4 {[%clk 0:00:32]}  Bc3 {[%clk 0:00:21]} 36. Nd5 {[%clk 0:00:28]}  Ba5 {[%clk 0:00:20]} 37. Ne7 {[%clk 0:00:26]}  Rc7 {[%clk 0:00:19]} 38. Nf5+ {[%clk 0:00:24]}  Kh8 {[%clk 0:00:17]} 39. Rxd6 {[%clk 0:00:21]}  Rcf7 {[%clk 0:00:16]} 40. Rh6+ {[%clk 0:00:19]}  Rh7 {[%clk 0:00:16]} 41. Ra6 {[%clk 0:00:18]}  Bb4 {[%clk 0:00:12]} 42. Nh4 {[%clk 0:00:17]}  Bc5+ {[%clk 0:00:13]} 43. Kg2 {[%clk 0:00:16]}  Re7 {[%clk 0:00:13]} 44. Ng6+ {[%clk 0:00:15]}  Kg7 {[%clk 0:00:13]} 45. Nxe7 {[%clk 0:00:14]}  Bxe7 {[%clk 0:00:13]} 46. Rg6+ {[%clk 0:00:13]}  Kf7 {[%clk 0:00:13]} 47. Rh6 {[%clk 0:00:13]}  h4 {[%clk 0:00:13]} 48. g4 {[%clk 0:00:13]}  Rd8 {[%clk 0:00:12]} 49. Kf3 {[%clk 0:00:13]}  Rd2 {[%clk 0:00:12]} 50. Rh7+ {[%clk 0:00:12]}  Ke6 {[%clk 0:00:12]} 51. g5 {[%clk 0:00:12]}  Bc5 {[%clk 0:00:09]} 52. f5+ {[%clk 0:00:12]}  Ke5 {[%clk 0:00:09]} 53. f6 {[%clk 0:00:12]}  Rf2+ {[%clk 0:00:09]} 54. Kg4 {[%clk 0:00:11]}  Kxe4 {[%clk 0:00:10]} 55. Re7+ {[%clk 0:00:11]}  Bxe7 {[%clk 0:00:10]} 56. fxe7 {[%clk 0:00:10]}  Rg2+ {[%clk 0:00:10]} 57. Kh5 {[%clk 0:00:10]}  Kf5 {[%clk 0:00:09]} 58. e8=Q {[%clk 0:00:11]}  Rxg5+ {[%clk 0:00:10]} 59. Kxh4 {[%clk 0:00:11]}  Rg6 {[%clk 0:00:09]} 60. Qf7+ {[%clk 0:00:10]}  Rf6 {[%clk 0:00:09]} 61. Qd5+ {[%clk 0:00:10]}  Kg6 {[%clk 0:00:10]} 62. Qxb5 {[%clk 0:00:10]}  Rf4+ {[%clk 0:00:10]} 63. Kg3 {[%clk 0:00:10]}  Rf5 {[%clk 0:00:11]} 64. Qc6+ {[%clk 0:00:10]}  Kg5 {[%clk 0:00:08]} 65. Qd6 {[%clk 0:00:10]} 1-0


[Site "https://www.chess.com"]

[Event "Titled Tuesday Blitz May 9 Late 2023"]
[White "Vaglio Munoz, Jaime"]
[Black "Kleiman, Jake"]
[WhiteFideId "6500145"]
[BlackFideId "2020041"]
[WhiteElo "2199"]
[BlackElo "2598"]
[Result "0-1"]
[Round "01"]
[TimeControl "180+2"]
[Date "2023.05.09"]
[WhiteClock "0:00:31"]
[BlackClock "0:00:28"]

1. Nf3 {[%clk 0:02:58]}  d5 {[%clk 0:02:59]} 2. b4 {[%clk 0:02:57]}  e6 {[%clk 0:02:58]} 3. a3 {[%clk 0:02:55]}  Nf6 {[%clk 0:02:59]} 4. Bb2 {[%clk 0:02:55]}  Be7 {[%clk 0:02:59]} 5. g3 {[%clk 0:02:54]}  O-O {[%clk 0:03:00]} 6. Bg2 {[%clk 0:02:54]}  a5 {[%clk 0:02:58]} 7. b5 {[%clk 0:02:52]}  a4 {[%clk 0:02:58]} 8. d3 {[%clk 0:02:51]}  b6 {[%clk 0:02:58]} 9. O-O {[%clk 0:02:50]}  Bb7 {[%clk 0:02:59]} 10. c4 {[%clk 0:02:49]}  dxc4 {[%clk 0:02:49]} 11. dxc4 {[%clk 0:02:50]}  Nbd7 {[%clk 0:02:47]} 12. Nc3 {[%clk 0:02:48]}  Nc5 {[%clk 0:02:47]} 13. Ne5 {[%clk 0:02:45]}  Bxg2 {[%clk 0:02:44]} 14. Kxg2 {[%clk 0:02:46]}  Qc8 {[%clk 0:02:34]} 15. Nc6 {[%clk 0:02:44]}  Re8 {[%clk 0:02:30]} 16. f3 {[%clk 0:02:44]}  Nb3 {[%clk 0:02:27]} 17. Ra2 {[%clk 0:02:40]}  Nc5 {[%clk 0:02:20]} 18. e4 {[%clk 0:02:39]}  Bf8 {[%clk 0:02:18]} 19. Ne2 {[%clk 0:02:38]}  Nfd7 {[%clk 0:02:12]} 20. Ned4 {[%clk 0:02:34]}  e5 {[%clk 0:01:58]} 21. Nf5 {[%clk 0:02:33]}  Nb8 {[%clk 0:01:36]} 22. Nb4 {[%clk 0:02:27]}  Qe6 {[%clk 0:01:32]} 23. Qe2 {[%clk 0:02:26]}  Nb3 {[%clk 0:01:26]} 24. Bc3 {[%clk 0:02:22]}  Nd7 {[%clk 0:01:24]} 25. Nd5 {[%clk 0:02:21]}  Rac8 {[%clk 0:01:24]} 26. Bb4 {[%clk 0:02:17]}  Ndc5 {[%clk 0:01:22]} 27. Rd1 {[%clk 0:02:10]}  g6 {[%clk 0:01:20]} 28. Nfe3 {[%clk 0:02:06]}  Nd4 {[%clk 0:01:20]} 29. Qf2 {[%clk 0:02:05]}  f5 {[%clk 0:01:18]} 30. exf5 {[%clk 0:01:56]}  gxf5 {[%clk 0:01:18]} 31. g4 {[%clk 0:01:51]}  f4 {[%clk 0:01:06]} 32. Nf1 {[%clk 0:01:46]}  Bg7 {[%clk 0:01:02]} 33. Nc3 {[%clk 0:01:45]}  Rcd8 {[%clk 0:00:58]} 34. Bxc5 {[%clk 0:01:44]}  bxc5 {[%clk 0:00:59]} 35. Nd5 {[%clk 0:01:29]}  e4 {[%clk 0:00:59]} 36. Re1 {[%clk 0:01:21]}  exf3+ {[%clk 0:00:56]} 37. Kh3 {[%clk 0:01:05]}  Qh6+ {[%clk 0:00:51]} 38. Qh4 {[%clk 0:01:03]}  Qxh4+ {[%clk 0:00:50]} 39. Kxh4 {[%clk 0:01:04]}  Rxe1 {[%clk 0:00:50]} 40. Nd2 {[%clk 0:00:55]}  f2 {[%clk 0:00:45]} 41. Kh3 {[%clk 0:00:51]}  Re2 {[%clk 0:00:44]} 42. Kg2 {[%clk 0:00:51]}  f3+ {[%clk 0:00:41]} 43. Kf1 {[%clk 0:00:50]}  Rde8 {[%clk 0:00:34]} 44. Nf4 {[%clk 0:00:43]}  Bh6 {[%clk 0:00:28]} 45. Nxf3 {[%clk 0:00:37]}  Rxa2 {[%clk 0:00:27]} 46. Nd5 {[%clk 0:00:36]}  Nxf3 {[%clk 0:00:25]} 47. Nf6+ {[%clk 0:00:35]}  Kf7 {[%clk 0:00:25]} 48. Nxe8 {[%clk 0:00:33]}  Nxh2+ {[%clk 0:00:26]} 49. Kg2 {[%clk 0:00:34]}  f1=Q+ {[%clk 0:00:27]} 50. Kg3 {[%clk 0:00:32]}  Qf3+ {[%clk 0:00:28]} 51. Kh4 {[%clk 0:00:31]}  Qxg4# {[%clk 0:00:28]} 0-1


[Site "https://www.chess.com"]

[Event "Titled Tuesday Blitz May 9 Late 2023"]
[White "Ismagilov, Damir"]
[Black "Escalante Ramirez, Rafael"]
[WhiteFideId "34199982"]
[BlackFideId "3900177"]
[WhiteElo "2143"]
[BlackElo "2273"]
[Result "1-0"]
[Round "01"]
[TimeControl "180+2"]
[Date "2023.05.09"]
[WhiteClock "0:00:19"]
[BlackClock "0:00:00"]

1. f4 {[%clk 0:02:58]}  Nf6 {[%clk 0:02:58]} 2. Nf3 {[%clk 0:02:58]}  g6 {[%clk 0:02:58]} 3. b3 {[%clk 0:02:58]}  Bg7 {[%clk 0:02:58]} 4. Bb2 {[%clk 0:02:59]}  d6 {[%clk 0:02:58]} 5. e3 {[%clk 0:02:59]}  c5 {[%clk 0:02:58]} 6. Be2 {[%clk 0:02:56]}  Nc6 {[%clk 0:02:58]} 7. O-O {[%clk 0:02:56]}  Bg4 {[%clk 0:02:54]} 8. h3 {[%clk 0:02:55]}  Bd7 {[%clk 0:02:51]} 9. Nc3 {[%clk 0:02:52]}  O-O {[%clk 0:02:48]} 10. d3 {[%clk 0:02:48]}  Rb8 {[%clk 0:02:44]} 11. a4 {[%clk 0:02:37]}  a6 {[%clk 0:02:44]} 12. Qd2 {[%clk 0:02:37]}  b5 {[%clk 0:02:42]} 13. Kh2 {[%clk 0:02:33]}  b4 {[%clk 0:02:36]} 14. Nd1 {[%clk 0:02:20]}  d5 {[%clk 0:02:35]} 15. Ne5 {[%clk 0:02:16]}  Qc7 {[%clk 0:02:14]} 16. Nf2 {[%clk 0:02:09]}  Rbc8 {[%clk 0:02:05]} 17. Nxc6 {[%clk 0:02:04]}  Bxc6 {[%clk 0:02:03]} 18. Be5 {[%clk 0:02:05]}  Qb7 {[%clk 0:02:02]} 19. Bf3 {[%clk 0:02:04]}  d4 {[%clk 0:01:56]} 20. Bxc6 {[%clk 0:02:00]}  Qxc6 {[%clk 0:01:56]} 21. e4 {[%clk 0:01:59]}  Nd7 {[%clk 0:01:51]} 22. Bxg7 {[%clk 0:01:59]}  Kxg7 {[%clk 0:01:51]} 23. Qe2 {[%clk 0:01:53]}  e6 {[%clk 0:01:46]} 24. e5 {[%clk 0:01:44]}  Nb6 {[%clk 0:01:38]} 25. Ne4 {[%clk 0:01:39]}  Nd5 {[%clk 0:01:37]} 26. Rf2 {[%clk 0:01:32]}  Nc3 {[%clk 0:01:36]} 27. Nxc3 {[%clk 0:01:31]}  dxc3 {[%clk 0:01:36]} 28. Qf3 {[%clk 0:01:21]}  Rfd8 {[%clk 0:01:34]} 29. Kg3 {[%clk 0:01:19]}  Rd4 {[%clk 0:01:34]} 30. Qxc6 {[%clk 0:01:18]}  Rxc6 {[%clk 0:01:33]} 31. Re1 {[%clk 0:01:17]}  Rc8 {[%clk 0:01:31]} 32. Rfe2 {[%clk 0:01:17]}  Rcd8 {[%clk 0:01:28]} 33. Re4 {[%clk 0:01:17]}  Kf8 {[%clk 0:01:24]} 34. Kf3 {[%clk 0:01:14]}  Ke7 {[%clk 0:01:23]} 35. Rxd4 {[%clk 0:01:11]}  cxd4 {[%clk 0:01:06]} 36. Re4 {[%clk 0:01:11]}  Rd5 {[%clk 0:01:04]} 37. g4 {[%clk 0:01:10]}  h6 {[%clk 0:00:50]} 38. Re1 {[%clk 0:01:04]}  Rd8 {[%clk 0:00:48]} 39. Ke4 {[%clk 0:01:02]}  f5+ {[%clk 0:00:36]} 40. exf6+ {[%clk 0:00:57]}  Kxf6 {[%clk 0:00:36]} 41. Rf1 {[%clk 0:00:57]}  Rd5 {[%clk 0:00:32]} 42. Rf2 {[%clk 0:00:46]}  Rd7 {[%clk 0:00:30]} 43. f5 {[%clk 0:00:46]}  exf5+ {[%clk 0:00:27]} 44. gxf5 {[%clk 0:00:47]}  g5 {[%clk 0:00:27]} 45. Rg2 {[%clk 0:00:35]}  h5 {[%clk 0:00:25]} 46. Rf2 {[%clk 0:00:32]}  Rd8 {[%clk 0:00:25]} 47. Rg2 {[%clk 0:00:28]}  Rd7 {[%clk 0:00:25]} 48. h4 {[%clk 0:00:28]}  g4 {[%clk 0:00:24]} 49. Rf2 {[%clk 0:00:27]}  Rd8 {[%clk 0:00:23]} 50. Rf4 {[%clk 0:00:23]}  Rd7 {[%clk 0:00:21]} 51. Rf2 {[%clk 0:00:20]}  Rd8 {[%clk 0:00:20]} 52. Kf4 {[%clk 0:00:19]}  Re8 {[%clk 0:00:17]} 53. Kg3 {[%clk 0:00:20]}  Re3+ {[%clk 0:00:16]} 54. Kg2 {[%clk 0:00:20]}  Re1 {[%clk 0:00:15]} 55. Kg3 {[%clk 0:00:19]}  Re3+ {[%clk 0:00:15]} 56. Kg2 {[%clk 0:00:18]}  Re1 {[%clk 0:00:15]} 57. Rf4 {[%clk 0:00:19]}  Re2+ {[%clk 0:00:14]} 58. Kg3 {[%clk 0:00:19]}  Re3+ {[%clk 0:00:11]} 59. Kf2 {[%clk 0:00:18]}  g3+ {[%clk 0:00:08]} 60. Kg2 {[%clk 0:00:18]}  Re2+ {[%clk 0:00:07]} 61. Kxg3 {[%clk 0:00:18]}  Rxc2 {[%clk 0:00:06]} 62. Rxd4 {[%clk 0:00:19]}  Rb2 {[%clk 0:00:05]} 63. Rxb4 {[%clk 0:00:19]}  c2 {[%clk 0:00:02]} 64. Rc4 {[%clk 0:00:20]}  Kxf5 {[%clk 0:00:02]} 65. Rc5+ {[%clk 0:00:19]}  Ke6 {[%clk 0:00:00]} 66. b4 {[%clk 0:00:19]} 1-0


[Site "https://www.chess.com"]

[Event "Titled Tuesday Blitz May 9 Late 2023"]
[White "Svicevic, Rastko"]
[Black "cryptoguru02"]
[WhiteFideId "916315"]
[WhiteElo "2115"]
[BlackElo "2579"]
[Result "0-1"]
[Round "01"]
[TimeControl "180+2"]
[Date "2023.05.09"]
[WhiteClock "0:00:00"]
[BlackClock "0:00:25"]

1. d4 {[%clk 0:03:00]}  g6 {[%clk 0:02:59]} 2. e4 {[%clk 0:03:00]}  Bg7 {[%clk 0:03:00]} 3. c3 {[%clk 0:03:00]}  d6 {[%clk 0:02:59]} 4. Bd3 {[%clk 0:03:01]}  Nc6 {[%clk 0:02:59]} 5. Ne2 {[%clk 0:02:59]}  e5 {[%clk 0:02:59]} 6. a3 {[%clk 0:02:55]}  Bd7 {[%clk 0:02:57]} 7. Be3 {[%clk 0:02:49]}  Nf6 {[%clk 0:02:54]} 8. d5 {[%clk 0:02:46]}  Ne7 {[%clk 0:02:54]} 9. Nd2 {[%clk 0:02:41]}  Ng4 {[%clk 0:02:46]} 10. Nf1 {[%clk 0:02:41]}  Nxe3 {[%clk 0:02:45]} 11. Nxe3 {[%clk 0:02:42]}  O-O {[%clk 0:02:44]} 12. O-O {[%clk 0:02:39]}  Bh6 {[%clk 0:02:43]} 13. Qc2 {[%clk 0:02:32]}  c6 {[%clk 0:02:33]} 14. c4 {[%clk 0:02:28]}  Rc8 {[%clk 0:02:30]} 15. Qb3 {[%clk 0:02:11]}  Qb6 {[%clk 0:02:08]} 16. Qxb6 {[%clk 0:02:04]}  axb6 {[%clk 0:02:08]} 17. Nd1 {[%clk 0:01:45]}  f5 {[%clk 0:02:04]} 18. Ndc3 {[%clk 0:01:44]}  Rfd8 {[%clk 0:01:40]} 19. Rfd1 {[%clk 0:01:43]}  Be8 {[%clk 0:01:40]} 20. b4 {[%clk 0:01:32]}  Ra8 {[%clk 0:01:40]} 21. Ra2 {[%clk 0:01:29]}  c5 {[%clk 0:01:39]} 22. bxc5 {[%clk 0:01:16]}  bxc5 {[%clk 0:01:37]} 23. Rb1 {[%clk 0:01:16]}  Ra7 {[%clk 0:01:35]} 24. Rb6 {[%clk 0:01:12]}  Nc8 {[%clk 0:01:30]} 25. Rb3 {[%clk 0:01:12]}  b6 {[%clk 0:01:20]} 26. Nb5 {[%clk 0:01:03]}  Bxb5 {[%clk 0:01:19]} 27. Rxb5 {[%clk 0:00:59]}  fxe4 {[%clk 0:01:11]} 28. Bxe4 {[%clk 0:00:59]}  Ra6 {[%clk 0:01:07]} 29. Bc2 {[%clk 0:00:42]}  Kf7 {[%clk 0:00:58]} 30. Rb3 {[%clk 0:00:41]}  Ke7 {[%clk 0:00:57]} 31. Nc3 {[%clk 0:00:39]}  Kd7 {[%clk 0:00:49]} 32. Ne4 {[%clk 0:00:30]}  Rf8 {[%clk 0:00:40]} 33. a4 {[%clk 0:00:26]}  Kc7 {[%clk 0:00:38]} 34. Bd3 {[%clk 0:00:14]}  Ne7 {[%clk 0:00:38]} 35. f3 {[%clk 0:00:05]}  Nf5 {[%clk 0:00:38]} 36. a5 {[%clk 0:00:03]}  Rxa5 {[%clk 0:00:35]} 37. Rxa5 {[%clk 0:00:02]}  bxa5 {[%clk 0:00:36]} 38. Ra3 {[%clk 0:00:02]}  Ra8 {[%clk 0:00:34]} 39. Nc3 {[%clk 0:00:02]}  Nd4 {[%clk 0:00:30]} 40. Nb5+ {[%clk 0:00:02]}  Nxb5 {[%clk 0:00:30]} 41. cxb5 {[%clk 0:00:03]}  Bc1 {[%clk 0:00:27]} 42. Ra4 {[%clk 0:00:03]}  Bd2 {[%clk 0:00:25]} 43. Kf1 {[%clk 0:00:03]}  Bb4 {[%clk 0:00:25]} 44. Ke2 {[%clk 0:00:02]}  Kb6 {[%clk 0:00:25]} 45. Bc4 {[%clk 0:00:00]}  Rf8 {[%clk 0:00:25]} 0-1


[Site "https://www.chess.com"]

[Event "Titled Tuesday Blitz May 9 Late 2023"]
[White "Janaszak, Dawid"]
[Black "Delorme, Alban"]
[WhiteFideId "1119206"]
[BlackFideId "623636"]
[WhiteElo "2220"]
[BlackElo "2196"]
[Result "1-0"]
[Round "01"]
[TimeControl "180+2"]
[Date "2023.05.09"]
[WhiteClock "0:01:05"]
[BlackClock "0:00:30"]

1. e4 {[%clk 0:03:00]}  c5 {[%clk 0:02:59]} 2. Nc3 {[%clk 0:02:56]}  Nc6 {[%clk 0:02:58]} 3. Bb5 {[%clk 0:02:55]}  Nd4 {[%clk 0:02:58]} 4. Nf3 {[%clk 0:02:55]}  g6 {[%clk 0:02:58]} 5. O-O {[%clk 0:02:54]}  Bg7 {[%clk 0:02:58]} 6. e5 {[%clk 0:02:46]}  a6 {[%clk 0:02:51]} 7. Bc4 {[%clk 0:02:40]}  d6 {[%clk 0:02:48]} 8. exd6 {[%clk 0:02:35]}  Qxd6 {[%clk 0:02:48]} 9. Ne4 {[%clk 0:02:30]}  Qc7 {[%clk 0:02:48]} 10. c3 {[%clk 0:02:14]}  Nxf3+ {[%clk 0:02:38]} 11. Qxf3 {[%clk 0:02:15]}  Nf6 {[%clk 0:02:37]} 12. d3 {[%clk 0:02:12]}  O-O {[%clk 0:02:36]} 13. Bf4 {[%clk 0:02:12]}  Qb6 {[%clk 0:02:30]} 14. Nxf6+ {[%clk 0:02:06]}  Bxf6 {[%clk 0:02:29]} 15. Rab1 {[%clk 0:02:01]}  Bd7 {[%clk 0:02:28]} 16. Rfe1 {[%clk 0:01:55]}  Bb5 {[%clk 0:02:06]} 17. Be5 {[%clk 0:01:47]}  Bxc4 {[%clk 0:02:00]} 18. dxc4 {[%clk 0:01:48]}  Bxe5 {[%clk 0:01:53]} 19. Rxe5 {[%clk 0:01:49]}  e6 {[%clk 0:01:50]} 20. Qe3 {[%clk 0:01:49]}  Rac8 {[%clk 0:01:47]} 21. h4 {[%clk 0:01:49]}  h5 {[%clk 0:01:44]} 22. g4 {[%clk 0:01:49]}  hxg4 {[%clk 0:01:40]} 23. h5 {[%clk 0:01:50]}  Kg7 {[%clk 0:01:15]} 24. hxg6 {[%clk 0:01:50]}  Rh8 {[%clk 0:01:13]} 25. gxf7 {[%clk 0:01:48]}  Qc6 {[%clk 0:01:00]} 26. Re4 {[%clk 0:01:41]}  Rcf8 {[%clk 0:00:43]} 27. Rd1 {[%clk 0:01:29]}  Rxf7 {[%clk 0:00:43]} 28. Qg5+ {[%clk 0:01:29]}  Kh7 {[%clk 0:00:41]} 29. Qh5+ {[%clk 0:01:10]}  Kg8 {[%clk 0:00:34]} 30. Rd8+ {[%clk 0:01:05]}  Rf8 {[%clk 0:00:30]} 31. Qg6# {[%clk 0:01:05]} 1-0


[Site "https://www.chess.com"]